[Event "Icelandic Championship 2022"]
[Site "Selfoss"]
[Date "2022.04.26"]
[Round "6.3"]
[White "Stefansson, Hannes"]
[Black "Stefansson, Vignir Vatnar"]
[Result "*"]
[ECO "B60"]
[WhiteElo "2520"]
[BlackElo "2484"]
[Annotator "TA"]
[PlyCount "103"]
[EventDate "2022.04.21"]
[EventType "tourn"]
[EventCountry "ISL"]
[SourceTitle "playchess.com"]
[Source "ChessBase"]
[SourceQuality "1"]
[TimeControl "40/5400+30:1800+30"]

{[%evp 10,103,33,27,42,56,39,68,56,36,32,12,10,0,0,0,7,0,49,0,0,10,33,0,0,0,0,1,17,30,31,31,25,0,0,-3,-8,-10,-6,-9,-11,-9,-8,-19,-18,-22,-18,-19,-18,-18,-16,-37,-22,-22,-22,-14,-12,-27,-26,-27,-27,-27,-20,-26,-27,-35,-42,-42,-27,-28,-32,-27,-12,-12,-12,-29,-29,-34,-27,-27,-31,-37,-20,-28,-10,-10,-10,-11,-8,-13,-7,-16,0,-13,-8,-22]} 1. e4 {[%emt 0:00:06]} c5 {[%emt 0:00:36]} 2. Nf3 {[%emt 0:01:09]} Nf6 {[%emt 0:00:06]} 3. Nc3 {[%emt 0:01:28]} d6 {[%emt 0:00:55]} 4. d4 {[%emt 0:00:38]} cxd4 {[%emt 0:00:06]} 5. Nxd4 {[%emt 0:00:04]} Nc6 {[%emt 0:00:42]} 6. Bg5 {[%emt 0:00:37]} g6 {[%emt 0:00:13] B60: Sicilian: Richter-Rauzer: Unusual Black 6th moves and 6...Bd7 without 7 Qd2.} 7. Bb5 {[%emt 0:06:00] [#] Threatens to win with Bxf6.} Bd7 {[%emt 0:00:07]} 8. Bxf6 {[%emt 0:01:35]} exf6 {[%emt 0:00:05] White is slightly better.} 9. O-O {[%emt 0:12:16] 9.Nde2 gains popularity.} Bg7 {[%emt 0:01:02]} 10. Nb3 {[%emt 0:06:35] Pair of Knights!} Be6 {[%emt 0:04:21]} 11. Qd2 {[%emt 0:06:52]} O-O {[%emt 0:05:07]} 12. Rad1 {[%emt 0:06:20]} f5 {[%emt 0:01:42] [#]} 13. Rfe1 $146 {[%emt 0:01:59]} ({Predecessor:} 13. Bxc6 bxc6 14. Nd4 Qb6 15. exf5 Bc4 16. Rfe1 Qxb2 17. Rb1 Qa3 18. Ne4 Rfe8 19. f6 {0-1 (45) Novopashin,A-Chernikov,O Dnipropetrovsk 1964}) 13... Be5 {[%emt 0:31:46]} (13... fxe4 $11 14. Nxe4 d5) 14. Bxc6 {[%emt 0:04:30]} bxc6 {[%emt 0:00:27]} 15. Nd4 {[%emt 0:00:54]} Qc8 {[%emt 0:07:27]} (15... Qd7 {seems wilder.} 16. Qd3 Rae8 17. exf5 Bxf5 18. Nxf5 Qxf5 19. Qxf5 gxf5 20. g3 Rb8) 16. f4 {[%emt 0:04:41]} Bg7 {[%emt 0:00:37]} 17. Nxe6 {[%emt 0:01:51]} Qxe6 {[%emt 0:00:06]} 18. Qxd6 {[%emt 0:00:09]} Qxd6 {[%emt 0:00:03]} 19. Rxd6 {[%emt 0:00:14] Hoping for e5.} fxe4 {[%emt 0:00:01]} 20. Nxe4 {[%emt 0:04:37]} Bxb2 {[%emt 0:00:43]} 21. c4 {[%emt 0:03:27]} c5 {[%emt 0:05:00]} 22. Nxc5 {[%emt 0:10:26]} Ba3 {[%emt 0:00:08]} 23. Rd5 {[%emt 0:02:19]} Rfc8 $1 {[%emt 0:00:09]} 24. Nd3 {[%emt 0:02:13]} ({Don't blunder} 24. Ree5 $2 f6 25. Re6 Bxc5+ $19) 24... Rxc4 {[%emt 0:00:09]} 25. Re2 {[%emt 0:01:51]} Rac8 {[%emt 0:01:58]} 26. f5 {[%emt 0:03:03]} Kg7 {[%emt 0:01:42]} 27. Kf2 {[%emt 0:01:14]} Rc3 {[%emt 0:01:37]} 28. fxg6 {[%emt 0:00:49]} hxg6 {[%emt 0:00:11]} 29. g3 {[%emt 0:01:36]} R8c7 {[%emt 0:03:08]} 30. h4 {[%emt 0:00:55]} Be7 {[%emt 0:02:01]} 31. Nf4 {[%emt 0:03:14]} Bc5+ {[%emt 0:03:05]} 32. Kg2 {[%emt 0:00:33]} Be3 {[%emt 0:00:18]} 33. Nd3 {[%emt 0:01:25]} Bb6 {[%emt 0:00:06]} 34. Nf2 {[%emt 0:01:31]} Ra3 {[%emt 0:03:55]} 35. Rd3 {[%emt 0:00:14]} Ra4 {[%emt 0:01:47]} 36. Rf3 {[%emt 0:00:59]} Rd7 {[%emt 0:02:06]} 37. Rd3 {[%emt 0:00:53]} Rxd3 {[%emt 0:00:23]} 38. Nxd3 $15 {[%emt 0:00:06][%mdl 4096] Endgame KRB-KRN} Ra3 {[%emt 0:00:03]} 39. Ne5 {[%emt 0:01:00]} Bc7 {[%emt 0:00:40] White must now prevent ...Bxe5.} 40. Nf3 {[%emt 0:00:15]} Rc3 {[%emt 0:03:24]} 41. Rd2 {[%emt 0:34:50]} Kf8 {[%emt 0:31:19]} 42. g4 {[%emt 0:00:44]} Ra3 {[%emt 0:02:56]} 43. Rf2 {[%emt 0:01:45]} Bf4 {[%emt 0:01:00]} 44. Re2 {[%emt 0:02:49]} a5 {[%emt 0:00:16]} 45. Rc2 {[%emt 0:00:54]} Ke7 {[%emt 0:02:48]} 46. Kf2 {[%emt 0:00:40]} Kd6 {[%emt 0:01:13]} 47. Re2 {[%emt 0:00:00] The position is equal.} Kd5 {[%emt 0:00:00]} 48. h5 {[%emt 0:00:00]} a4 {[%emt 0:00:00]} 49. Rc2 {[%emt 0:00:00]} Kd6 {[%emt 0:00:00]} 50. Kg2 {[%emt 0:00:00]} Kd5 {[%emt 0:00:00]} 51. Kf2 {[%emt 0:00:00]} Be3+ {[%emt 0:00:00]} 52. Ke2 {[%emt 0:00:00] Weighted Error Value: White=0.06 (flawless) /Black=0.05 (flawless)} *

[Event "Icelandic Championship 2022"]
[Site "Selfoss"]
[Date "2022.04.26"]
[Round "6.4"]
[White "Thorfinnsson, Bragi"]
[Black "Heimisson, Hilmir Freyr"]
[Result "0-1"]
[ECO "B13"]
[WhiteElo "2419"]
[BlackElo "2312"]
[Annotator "TA"]
[PlyCount "68"]
[EventDate "2022.04.21"]
[EventType "tourn"]
[EventCountry "ISL"]
[SourceTitle "playchess.com"]
[Source "ChessBase"]
[SourceQuality "1"]
[TimeControl "40/5400+30:1800+30"]

{[%evp 9,68,-5,-8,-10,-1,-2,10,14,14,4,13,0,0,-6,0,-21,-22,-37,-32,-28,-28,-93,-89,-77,-75,-83,-81,-79,-81,-121,-120,-118,-108,-211,-198,-221,-227,-206,-219,-316,-318,-324,-316,-321,-306,-415,-439,-425,-407,-643,-429,-393,-413,-1063,-1052,-29979,-29980,-29957,-6129,-29998,-29999]} 1. d4 {[%emt 0:00:06]} Nf6 {[%emt 0:00:26]} 2. Bf4 {[%emt 0:01:07]} d5 {[%emt 0:00:23]} 3. Nc3 {[%emt 0:00:20]} c5 {[%emt 0:00:33]} 4. e3 {[%emt 0:00:14]} cxd4 {[%emt 0:01:19]} 5. exd4 {[%emt 0:00:18]} a6 {[%emt 0:00:09]} 6. Nf3 {[%emt 0:25:25] B13: Caro-Kann: Exchange Variation and Panov-Botvinnik Attack.} Nc6 {[%emt 0:00:48]} 7. Ne5 {[%emt 0:01:16]} e6 {[%emt 0:00:06]} 8. Nxc6 {[%emt 0:11:45] The position is equal.} bxc6 {[%emt 0:00:08]} 9. Na4 {[%emt 0:00:12]} Bd6 {[%emt 0:00:07]} 10. Bg3 {[%emt 0:02:02]} O-O {[%emt 0:07:38]} 11. Bd3 {[%emt 0:00:48]} Re8 {[%emt 0:14:22] [#]} 12. f4 $146 {[%emt 0:07:42]} ({Predecessor:} 12. O-O e5 13. dxe5 Bxe5 14. Re1 Bg4 15. Qd2 Qd6 16. Nb6 Rab8 17. Rxe5 Rxe5 18. Nc4 {1-0 (18) Bluebaum,M (2670)-Baskin,R (2390) Chess.com INT 2020}) 12... a5 {[%emt 0:12:04]} 13. Qe2 {[%emt 0:04:10]} Qc7 {[%emt 0:01:10]} 14. O-O {[%emt 0:01:33]} Qa7 {[%emt 0:00:37]} 15. Kh1 {[%emt 0:21:55]} (15. c3 $11) 15... Qxd4 $17 {[%emt 0:20:16] Black converts the advantage convincingly.} 16. c4 {[%emt 0:00:06] [#] Hoping for Bf2.} Ne4 {[%emt 0:00:05]} 17. Bxe4 {[%emt 0:04:31]} Qxe4 {[%emt 0:00:11]} 18. Qxe4 {[%emt 0:01:03]} dxe4 {[%emt 0:00:05]} 19. Rad1 {[%emt 0:04:53]} Bc7 {[%emt 0:05:34]} 20. b3 {[%emt 0:00:12]} f5 {[%emt 0:02:20][%cal Bf7f5,Bf5f4][%mdl 32]} 21. h3 {[%emt 0:03:20]} (21. h4 $17 {might work better.}) 21... g5 $19 {[%emt 0:08:44]} 22. Bh2 {[%emt 0:00:41]} gxf4 {[%emt 0:06:01]} 23. Bxf4 {[%emt 0:00:34] [#]} e5 $1 {[%emt 0:02:47]} 24. Bg5 {[%emt 0:01:40]} (24. Be3 $142) 24... f4 {[%emt 0:01:37]} 25. Rfe1 {[%emt 0:04:24]} e3 {[%emt 0:02:54]} 26. Nc5 {[%emt 0:00:18]} h6 {[%emt 0:04:14]} 27. Bxh6 {[%emt 0:01:34]} Kh7 {[%emt 0:00:38]} 28. Bg5 {[%emt 0:00:07]} Kg6 {[%emt 0:00:07]} 29. Bh4 {[%emt 0:01:50]} (29. h4 $142 Bf5 30. Nd7) 29... Bf5 {[%emt 0:03:17] White must now prevent ...Rh8.} 30. g4 {[%emt 0:00:25]} Bc8 {[%emt 0:01:13]} 31. Ne4 {[%emt 0:00:49]} (31. Bg3 $142 a4 32. Re2) 31... Rh8 {[%emt 0:01:10]} 32. Be7 {[%emt 0:00:05]} Rxh3+ {[%emt 0:01:08]} 33. Kg2 {[%emt 0:00:26]} Bxg4 {[%emt 0:00:41]} 34. Bd6 {[%emt 0:00:40]} Bf3+ {[%emt 0:01:06] Weighted Error Value: White=0.88/Black=0.07 (flawless)} 0-1

[Event "Icelandic Championship 2022"]
[Site "Selfoss"]
[Date "2022.04.26"]
[Round "6.5"]
[White "Gretarsson, Hjorvar Steinn"]
[Black "Mai, Alexander Oliver"]
[Result "1-0"]
[ECO "A01"]
[WhiteElo "2548"]
[BlackElo "2207"]
[Annotator "TA"]
[PlyCount "87"]
[EventDate "2022.04.21"]
[EventType "tourn"]
[EventCountry "ISL"]
[SourceTitle "playchess.com"]
[Source "ChessBase"]
[SourceQuality "1"]
[TimeControl "40/5400+30:1800+30"]

{[%evp 9,87,-15,5,18,18,14,10,26,39,40,42,37,41,20,20,27,24,5,32,22,26,26,45,37,38,41,43,39,43,37,49,44,112,29,136,65,131,128,139,104,99,98,99,93,100,100,94,88,102,97,133,135,139,127,134,130,137,129,119,125,122,77,157,153,166,171,165,141,143,147,204,150,200,201,234,225,408,402,528,489]} 1. c4 {[%emt 0:02:45]} e5 {[%emt 0:00:08]} 2. b3 {[%emt 0:04:08]} Nc6 {[%emt 0:02:09]} 3. Bb2 {[%emt 0:00:15]} Nf6 {[%emt 0:01:47]} 4. Nf3 {[%emt 0:02:31]} e4 {[%emt 0:05:13]} 5. Nd4 {[%emt 0:00:09]} Nxd4 {[%emt 0:02:46]} 6. Bxd4 {[%emt 0:00:07] A01: Nimzowitsch-Larsen Opening.} d5 {[%emt 0:11:12]} 7. e3 {[%emt 0:04:50]} c6 {[%emt 0:01:21]} 8. Nc3 {[%emt 0:02:21] The position is equal.} Be7 {[%emt 0:01:42]} 9. cxd5 {[%emt 0:03:18]} cxd5 {[%emt 0:00:16]} 10. Bb5+ {[%emt 0:17:12]} Bd7 {[%emt 0:01:16]} 11. Qe2 {[%emt 0:04:27]} O-O {[%emt 0:01:47]} 12. Bxd7 {[%emt 0:04:53]} Qxd7 {[%emt 0:00:20] [#]} 13. d3 $146 {[%emt 0:01:50]} ({Predecessor:} 13. O-O Rac8 14. h3 a6 15. Na4 Rc6 16. Rac1 b5 17. Nc5 Bxc5 18. Rxc5 Rxc5 19. Bxc5 {1-0 (34) Jobava,B (2603)-Rakotomaharo,F (2422) Chess.com INT 2020}) 13... Rfe8 {[%emt 0:02:48]} 14. O-O {[%emt 0:01:50]} a6 {[%emt 0:07:52]} 15. Rad1 {[%emt 0:08:03]} Qc6 {[%emt 0:05:46]} 16. Qb2 {[%emt 0:08:58]} Rad8 {[%emt 0:06:07][%cal Ba8d8,Bd8d6,Bd6c6][%mdl 32]} 17. Ne2 {[%emt 0:00:51]} Qe6 {[%emt 0:03:42]} 18. Nf4 {[%emt 0:03:42]} Qf5 {[%emt 0:00:11]} 19. Qc3 {[%emt 0:01:43]} Rd6 {[%emt 0:05:30]} 20. Qc7 {[%emt 0:03:24]} g5 {[%emt 0:17:25] [#]} (20... Rd7 $14 21. Qa5 Bd8) 21. Ne2 {[%emt 0:02:36]} (21. dxe4 $1 $16 Nxe4 22. f3 $1) 21... g4 {[%emt 0:00:29]} (21... exd3 $11 22. Ng3 Qg6) 22. Ng3 {[%emt 0:00:36]} ({White should try} 22. Bxf6 $16 Rxf6 23. dxe4 dxe4 24. Qxb7) 22... Qe6 {[%emt 0:02:04]} (22... Qd7 $1 $14 23. Qxd7 Rxd7) 23. Bxf6 {[%emt 0:01:35]} Rc6 {[%emt 0:04:48]} 24. Qf4 {[%emt 0:03:11] Threatening mate with Qg5+.} Bxf6 {[%emt 0:00:14]} 25. dxe4 {[%emt 0:00:52]} dxe4 {[%emt 0:00:21]} 26. Nf5 {[%emt 0:04:25]} h5 {[%emt 0:00:35]} 27. Rd6 {[%emt 0:01:59]} Rxd6 {[%emt 0:00:50]} 28. Nxd6 {[%emt 0:00:20]} Re7 {[%emt 0:00:34]} 29. Nxe4 {[%emt 0:04:04][%cal Bd6e4,Be4g3,Bg3f5][%mdl 32]} Bg7 {[%emt 0:01:58] [#]} 30. Ng3 {[%emt 0:00:56]} Qe5 {[%emt 0:01:01]} 31. Nf5 {[%emt 0:04:04]} Re6 {[%emt 0:01:12]} 32. Qg5 {[%emt 0:00:48]} Qf6 {[%emt 0:01:11]} 33. Qxh5 {[%emt 0:01:28] &Bianco is more active.} Re5 {[%emt 0:01:15]} 34. e4 {[%emt 0:00:05]} Rxe4 {[%emt 0:00:11]} 35. Ng3 {[%emt 0:00:18]} Rf4 {[%emt 0:01:35]} (35... Qe5 $142) 36. Re1 $36 {[%emt 0:00:55][%cal Bf1e1,Be1e4,Be4f4][%mdl 2080] And now Re8+ would win. White has strong initiative.} Qc6 {[%emt 0:01:58] Against Re8+} 37. Qg5 {[%emt 0:01:59]} Qf6 {[%emt 0:01:26]} 38. Qxf6 {[%emt 0:01:00]} Rxf6 $18 {[%emt 0:01:03][%mdl 4096] Endgame KRB-KRN} 39. Re4 {[%emt 0:00:43]} Rg6 {[%emt 0:00:08]} (39... Rc6 $16 {was worth a try.} 40. Rxg4 Rc1+ 41. Nf1 Rc2) 40. Kf1 {[%emt 0:00:15]} Kf8 {[%emt 0:00:25]} (40... Rg5 $16 41. Rf4 Bb2) 41. Nf5 {[%emt 0:30:21]} Rg5 {[%emt 0:32:49]} 42. Ne3 {[%emt 0:00:00]} f5 $2 {[%emt 0:00:00]} (42... Rh5 43. Rc4 (43. Nxg4 f5 $18) (43. Rxg4 Rxh2 44. Rc4 Kg8 $16) 43... Rxh2) 43. Rf4 {[%emt 0:00:00]} Rh5 {[%emt 0:00:00]} 44. Rxf5+ {[%emt 0:00:00] Weighted Error Value: White=0.12 (very precise) /Black=0.29 (precise)} 1-0

[Event "Icelandic Championship 2022"]
[Site "Selfoss"]
[Date "2022.04.27"]
[Round "7.1"]
[White "Mai, Alexander Oliver"]
[Black "Kjartansson, Gudmundur"]
[Result "1/2-1/2"]
[ECO "C42"]
[WhiteElo "2207"]
[BlackElo "2450"]
[Annotator "TA"]
[PlyCount "175"]
[EventDate "2022.04.21"]
[EventType "tourn"]
[EventCountry "ISL"]
[SourceTitle "playchess.com"]
[Source "ChessBase"]
[SourceQuality "1"]
[TimeControl "40/5400+30:1800+30"]

{[%evp 15,175,22,33,29,22,24,25,26,24,23,26,8,16,6,14,12,17,15,16,16,15,14,20,0,11,14,15,0,12,0,12,10,17,0,5,0,28,0,21,11,15,21,16,0,43,0,0,-10,-6,-42,-15,-80,-65,-68,-70,-52,-47,-160,-167,-256,-239,-248,-236,-233,-11,-12,-12,-9,-11,-105,-113,-99,-109,-345,-345,-317,-310,-292,0,0,8,-7,17,8,108,8,8,8,8,23,250,0,0,0,0,0,0,0,0,0,0,0,0,0,0,0,0,0,0,0,0,0,0,0,0,0,0,0,0,0,0,0,0,0,0,0,0,0,0,0,0,0,0,0,0,0,0,0,0,0,0,0,225,0,0,0,0,0,0,0,0,0,0,0,0,0,0,0,0,0,0,0]} 1. e4 {[%emt 0:00:04]} e5 {[%emt 0:00:07]} 2. Nf3 {[%emt 0:00:06]} Nf6 {[%emt 0:00:07]} 3. Nxe5 {[%emt 0:04:57]} d6 {[%emt 0:00:06]} 4. Nf3 {[%emt 0:00:12]} Nxe4 {[%emt 0:00:06]} 5. d3 {[%emt 0:02:01]} Nf6 {[%emt 0:00:38]} 6. d4 {[%emt 0:00:23]} Be7 {[%emt 0:08:11]} 7. Bd3 {[%emt 0:00:50]} Bg4 {[%emt 0:00:35]} 8. c3 {[%emt 0:03:10]} O-O {[%emt 0:00:39]} 9. O-O {[%emt 0:00:48]} Re8 {[%emt 0:10:11]} 10. h3 {[%emt 0:05:13]} Bh5 {[%emt 0:00:13]} 11. Bf4 {[%emt 0:01:16]} Nbd7 {[%emt 0:03:05]} 12. Nbd2 {[%emt 0:00:44]} Nf8 {[%emt 0:04:50]} 13. Qc2 {[%emt 0:01:41]} Bg6 {[%emt 0:01:29]} 14. Rfe1 {[%emt 0:00:59]} Bxd3 {[%emt 0:00:55]} 15. Qxd3 {[%emt 0:00:03]} Ng6 {[%emt 0:00:12]} 16. Bh2 {[%emt 0:00:25]} Qd7 {[%emt 0:04:41]} 17. Nf1 {[%emt 0:05:23]} a5 {[%emt 0:01:28]} 18. Ne3 {[%emt 0:03:02]} a4 {[%emt 0:01:24]} 19. Nf5 {[%emt 0:01:52]} b5 {[%emt 0:06:57]} 20. d5 {[%emt 0:10:36]} Bf8 {[%emt 0:06:27]} 21. Rac1 {[%emt 0:04:59]} h6 {[%emt 0:03:23]} 22. Rcd1 {[%emt 0:04:30]} Ra5 {[%emt 0:22:48]} 23. Rxe8 {[%emt 0:12:37]} Qxe8 {[%emt 0:00:10]} 24. Qd4 {[%emt 0:02:10]} Qc8 {[%emt 0:07:22]} 25. Qd3 {[%emt 0:02:39]} (25. Nxh6+ $2 gxh6 26. Bxd6 (26. Qxf6 $2 Bg7 $19) 26... b4 $1 27. Qxb4 (27. Bxf8 $2 Rxd5 28. Bxh6 Rxd4 $19) 27... Rxd5 28. Rxd5 Nxd5 $19) 25... Qb7 {[%emt 0:03:04]} 26. Qd4 {[%emt 0:06:18]} (26. Bg3 $5 {[%cal Rf3h4]}) 26... Qc8 {[%emt 0:00:09]} 27. Ne3 {[%emt 0:02:59]} (27. Nxh6+ $2 gxh6 28. Bxd6 (28. Qxf6 $2 Bg7 $19) 28... b4 $1 29. Qxb4 (29. Bxf8 $2 Rxd5 30. Bxh6 Rxd4 $19) 29... Rxd5 30. Rxd5 Nxd5 $19) 27... Ra8 {[%emt 0:01:46]} 28. Nc2 {[%emt 0:02:51]} Qf5 {[%emt 0:01:03]} 29. Ne3 {[%emt 0:02:31]} Qd7 {[%emt 0:00:23]} 30. Qb4 {[%emt 0:02:04]} (30. Qd3 $5 {[%cal Rf3d4]}) 30... Ne7 {[%emt 0:02:30]} 31. Bg3 {[%emt 0:03:42]} Rb8 {[%emt 0:01:43]} 32. Rd2 {[%emt 0:01:36]} Qe8 {[%emt 0:01:55]} 33. Bh4 {[%emt 0:01:24]} (33. Qf4 $11) 33... g5 $17 {[%emt 0:01:17]} 34. Bg3 {[%emt 0:00:08]} c5 {[%emt 0:00:35]} 35. dxc6 $1 {[%emt 0:01:21]} Nxc6 {[%emt 0:00:06]} 36. Qa3 {[%emt 0:00:13]} ({Only move:} 36. Ng4 $15 Nh5 37. Qa3) 36... Ne4 $17 {[%emt 0:01:40]} 37. Re2 {[%emt 0:00:32]} (37. Nd5 $142) 37... Nxg3 {[%emt 0:02:43]} 38. fxg3 {[%emt 0:00:01]} d5 $1 {[%emt 0:01:12]} 39. b4 {[%emt 0:00:10]} d4 $2 {[%emt 0:02:17]} ({Better is} 39... axb3 $1 $19 40. Qxb3 Bc5 41. Qxd5 Bxe3+ 42. Kh2 Na5) 40. Nxd4 $11 {[%emt 0:06:07]} Nxd4 {[%emt 0:01:02]} 41. cxd4 {[%emt 0:30:06]} Qe4 {[%emt 0:30:39]} 42. Qb2 {[%emt 0:00:00]} (42. Rf2 $11) 42... Re8 $17 {[%emt 0:00:00]} ({Don't play} 42... Bg7 $6 43. Qc2 Qxd4 44. Kh2 $15) 43. Kf1 {[%emt 0:00:00]} Qd3 $1 {[%emt 0:00:00]} 44. Ng4 $2 {[%emt 0:00:00]} (44. Kf2 $17) 44... Qd1+ $19 {[%emt 0:00:00]} 45. Kf2 {[%emt 0:00:00]} a3 {[%emt 0:00:00]} ({Inferior is} 45... Rxe2+ 46. Qxe2 Qxd4+ 47. Kf3 $17) 46. Qd2 {[%emt 0:00:00]} Qxd2 $2 {[%emt 0:00:38]} (46... Rxe2+ $19 47. Qxe2 Qxd4+ 48. Qe3 Qxb4 49. Nf6+ Kh8) 47. Rxd2 $11 {[%emt 0:00:00]} Bxb4 {[%emt 0:00:08]} 48. Re2 {[%emt 0:00:00]} Rxe2+ {[%emt 0:00:14]} 49. Kxe2 {[%emt 0:00:00]} h5 {[%emt 0:01:41]} (49... Kg7 $11 {keeps the balance.}) 50. Ne3 {[%emt 0:00:00]} ({White should try} 50. Nf6+ $16 Kf8 51. Kd3 (51. Nxh5 f5 $14)) 50... Bd6 {[%emt 0:01:11]} 51. g4 {[%emt 0:01:24]} hxg4 {[%emt 0:00:04]} 52. hxg4 {[%emt 0:00:09]} f6 $2 {[%emt 0:00:59] [#]} (52... Kf8 $1 $11 {and Black stays safe.}) 53. Nc2 $2 {[%emt 0:04:35]} (53. Kd3 $1 $18) 53... Kf7 $11 {[%emt 0:00:13]} 54. Kd3 {[%emt 0:01:19]} Ke6 {[%emt 0:00:05]} 55. Ke4 {[%emt 0:04:31]} b4 {[%emt 0:00:02]} 56. Na1 {[%emt 0:00:29]} Bg3 {[%emt 0:01:23]} 57. Nb3 {[%emt 0:00:13]} Kd6 {[%emt 0:00:22]} 58. Na5 {[%emt 0:01:24]} Be1 {[%emt 0:00:15]} 59. Nb3 {[%emt 0:00:22]} Bc3 {[%emt 0:00:58]} 60. Na5 {[%emt 0:00:38]} Bb2 {[%emt 0:00:51]} 61. Nc4+ {[%emt 0:01:46]} Kc6 {[%emt 0:00:17]} 62. Nd2 {[%emt 0:00:27]} Ba1 {[%emt 0:00:44]} 63. Nb3 {[%emt 0:00:21]} Bc3 {[%emt 0:00:11]} 64. Nc1 {[%emt 0:00:50]} Kd6 {[%emt 0:01:20]} 65. Nb3 {[%emt 0:00:09]} Kc6 {[%emt 0:00:18]} 66. Nc1 {[%emt 0:00:05]} Be1 {[%emt 0:00:36]} 67. Nb3 {[%emt 0:00:20]} Bf2 {[%emt 0:00:25]} 68. Na1 {[%emt 0:00:43]} Bg1 {[%emt 0:00:45]} 69. Nb3 {[%emt 0:00:05]} Bf2 {[%emt 0:00:10]} 70. Na1 {[%emt 0:00:01]} Be1 {[%emt 0:00:57]} 71. Nb3 {[%emt 0:00:06]} Bc3 {[%emt 0:00:11]} 72. Nc1 {[%emt 0:00:31]} Bd2 {[%emt 0:00:21]} 73. Nb3 {[%emt 0:00:07]} Be1 {[%emt 0:00:03]} 74. Na1 {[%emt 0:00:34]} Bf2 {[%emt 0:00:48]} 75. Nb3 {[%emt 0:00:06]} Bg1 {[%emt 0:00:46]} 76. Na1 {[%emt 0:00:31]} Bf2 {[%emt 0:00:39]} 77. Nb3 $1 {[%emt 0:00:06]} Kd6 {[%emt 0:00:32]} 78. Na1 {[%emt 0:00:16]} Be1 $2 {[%emt 0:00:15] [#]} (78... Kc6 $11 {and Black is okay.}) 79. Nb3 $2 {[%emt 0:00:06]} ({White has to play} 79. Kd3 $1 $18) 79... Bc3 {[%emt 0:00:05]} 80. Nc1 {[%emt 0:00:19]} Bb2 {[%emt 0:00:30]} (80... Bd2 $5 81. Nb3 Bc3 $11) 81. Nb3 {[%emt 0:00:12]} Kc6 {[%emt 0:00:18]} 82. Nd2 {[%emt 0:00:08]} Ba1 {[%emt 0:01:21]} 83. Nb3 {[%emt 0:00:05]} Bc3 {[%emt 0:00:12]} 84. Nc1 {[%emt 0:00:08]} Bb2 {[%emt 0:00:51]} 85. Nb3 {[%emt 0:00:07]} Bc3 {[%emt 0:00:32]} 86. Nc1 {[%emt 0:00:07]} Kd6 {[%emt 0:00:27]} 87. Nb3 {[%emt 0:00:04]} Bb2 {[%emt 0:00:37]} 88. Nd2 {[%emt 0:07:46]} 1/2-1/2

[Event "Icelandic Championship 2022"]
[Site "Selfoss"]
[Date "2022.04.27"]
[Round "7.2"]
[White "Steingrimsson, Hedinn"]
[Black "Gretarsson, Hjorvar Steinn"]
[Result "0-1"]
[ECO "E49"]
[WhiteElo "2535"]
[BlackElo "2548"]
[Annotator "TA"]
[PlyCount "56"]
[EventDate "2022.04.21"]
[EventType "tourn"]
[EventCountry "ISL"]
[SourceTitle "playchess.com"]
[Source "ChessBase"]
[SourceQuality "1"]
[TimeControl "40/5400+30:1800+30"]

{[%evp 20,56,4,-6,24,16,17,11,43,30,39,0,11,0,25,0,29,0,-8,-41,-31,-83,0,0,-22,-221,-211,-621,-477,-1281,-1279,-1255,-1224,-29977,-29978,-29996,-29997,-29997,-29998]} 1. d4 {[%emt 0:02:15]} Nf6 {[%emt 0:01:54]} 2. c4 {[%emt 0:00:05]} e6 {[%emt 0:00:07]} 3. Nc3 {[%emt 0:00:32]} Bb4 {[%emt 0:00:06]} 4. e3 {[%emt 0:00:04]} O-O {[%emt 0:00:12]} 5. Bd3 {[%emt 0:00:04]} d5 {[%emt 0:00:24]} 6. a3 {[%emt 0:00:03]} Bxc3+ {[%emt 0:00:30]} 7. bxc3 {[%emt 0:00:03]} dxc4 {[%emt 0:01:49]} 8. Bxc4 {[%emt 0:01:36]} c5 {[%emt 0:00:05]} 9. Ne2 {[%emt 0:00:08]} Nc6 {[%emt 0:12:00]} 10. O-O {[%emt 0:00:14]} e5 {[%emt 0:08:59]} 11. Bb2 {[%emt 0:01:06]} Qb6 {[%emt 0:07:05] [#] Strongly threatening ...Na5. E49: Nimzo-Indian: Rubinstein: 5 Bd3 d5 6 a3 Bxc3+ 7 bxc3.} (11... Na5 $5 {[%cal Ra5c4]} 12. Bd3 e4 $11) 12. Qc2 {[%emt 0:08:54] [#]} Bg4 $146 {[%emt 0:13:56]} ({Predecessor:} 12... Rd8 13. h3 Bd7 14. Ba2 Be6 15. Bxe6 fxe6 16. Rad1 Qa6 17. Ng3 Qc4 18. Qd3 Qxd3 19. Rxd3 {1-0 (62) Hurme,H (2255)-Rychagov,M (2425) Espoo 1989}) 13. f3 {[%emt 0:21:18]} Bh5 {[%emt 0:01:29] The position is equal.} (13... Na5 $5 {[%cal Ra5c4]} 14. Ba2 (14. dxe5 Nxc4 15. exf6 Nxe3 $15) 14... Be6 $11) 14. Qb3 {[%emt 0:07:40]} Qc7 {[%emt 0:04:17] White must now prevent ...cxd4.} 15. Qa4 {[%emt 0:04:00]} Rac8 {[%emt 0:15:57]} 16. Rac1 {[%emt 0:12:27]} Na5 {[%emt 0:10:00] ...cxd4 is the strong threat.} 17. Ba2 {[%emt 0:06:45]} c4 {[%emt 0:03:19][%cal Ob7b5]} (17... b5 $5 {[%cal Rb5a4]} 18. Qd1 (18. Qxb5 $2 Rb8 $19) 18... Nc4 19. Bxc4 bxc4 $11) 18. Rf2 {[%emt 0:09:06]} e4 {[%emt 0:02:59][%cal Ob7b5]} 19. Ng3 {[%emt 0:00:03]} Bg6 {[%emt 0:01:15]} 20. f4 {[%emt 0:00:55] [#]} (20. Qd1 $15) 20... h5 {[%emt 0:02:03]} (20... Ng4 $1 $17 {[%cal Rg4f2]} 21. f5 (21. Re2 f5 $15) 21... Nxf2 22. Kxf2 Bxf5 23. Nxf5 g6) 21. f5 $11 {[%emt 0:00:46]} h4 {[%emt 0:00:18][%cal Bh5h4,Bh4g3,Bg3h2][%mdl 32]} 22. fxg6 $2 {[%emt 0:02:52] Now White is beyond hope.} (22. Nf1 $1 $11 Bh7 23. Qd1) 22... hxg3 $19 {[%emt 0:00:09]} 23. gxf7+ $2 {[%emt 0:13:57]} (23. Rxf6 gxh2+ 24. Kh1 gxf6 25. gxf7+ Rxf7 26. Qc2) 23... Rxf7 {[%emt 0:01:40]} 24. Rf4 {[%emt 0:00:02]} (24. hxg3 $142 Rcf8 25. Rcf1 Qxg3 26. Qxa5) 24... gxh2+ {[%emt 0:00:37]} 25. Kh1 {[%emt 0:00:05]} Nh5 {[%emt 0:01:21][%cal Bf6h5,Bh5g3,Bg3e2][%mdl 32] Pair of Knights!} 26. Rxf7 {[%emt 0:00:21]} Kxf7 {[%emt 0:01:17] Black mates.} 27. Qb5 {[%emt 0:00:02]} Ng3+ {[%emt 0:00:33]} 28. Kxh2 {[%emt 0:01:11]} Ne2+ {[%emt 0:00:07] Weighted Error Value: White=1.06/Black=0.17 (very precise)} 0-1